fUSD/lending_fUSD_20250611
["ID","MTS","AMOUNT","RATE_DAILY","PERIOD"]
[365428676,1749665455424,-490.0,0.00019835,2]
[365428677,1749665455433,-490.0,0.00019835,2]
[365428678,1749665455443,-151.0,0.00019835,2]
[365428679,1749665455452,-151.0,0.00019835,2]
[365428680,1749665455464,-490.0,0.00019835,2]
[365428681,1749665455473,-490.0,0.00019835,2]
[365428682,1749665455482,-480.45,0.00019835,2]
[365428683,1749665455492,-490.0,0.00019835,2]
[365428684,1749665455501,-490.0,0.00019835,2]
[365428685,1749665455511,-490.0,0.00019835,2]
[365428686,1749665455520,-490.0,0.00019835,2]
[365428687,1749665455529,-462.4,0.00019835,2]
[365428688,1749665455539,-490.0,0.00019835,2]
[365428689,1749665455548,-490.0,0.00019835,2]
[365428690,1749665455559,-490.0,0.00019835,2]
[365428691,1749665455568,-490.0,0.00019835,2]
[365428692,1749665455578,-490.0,0.00019835,2]
[365428693,1749665455588,-635.61,0.00019835,2]
[365428694,1749665455598,-620.45,0.00019835,2]
[365428695,1749665455607,-490.0,0.00019835,2]
[365428696,1749665455616,-298.27411598,0.00019835,2]
[365428697,1749665455626,-490.0,0.00019835,2]
[365428698,1749665455635,-490.0,0.00019835,2]
[365428699,1749665455645,-526.75,0.00019835,2]
[365428700,1749665455654,-490.0,0.00019835,2]
[365428701,1749665455663,-490.0,0.00019835,2]
[365428702,1749665455673,-490.0,0.00019835,2]
[365428703,1749665455683,-491.63,0.00019835,2]
[365428704,1749665455693,-836.29,0.00019835,2]
[365428705,1749665455703,-490.0,0.00019835,2]
[365428706,1749665455714,-770.43,0.00019835,2]
[365428707,1749665455724,-490.0,0.00019835,2]
[365428708,1749665455734,-490.0,0.00019835,2]
[365428709,1749665455743,-842.53,0.00019835,2]
[365428710,1749665455752,-490.0,0.00019835,2]
[365428711,1749665455762,-496.82,0.00019835,2]
[365428712,1749665455772,-490.0,0.00019835,2]
[365428713,1749665455781,-490.0,0.00019835,2]
[365428714,1749665455790,-610.32,0.00019835,2]
[365428715,1749665455799,-490.0,0.00019835,2]
[365428716,1749665455809,-532.57,0.00019835,2]
[365428717,1749665455819,-558.85,0.00019835,2]
[365428718,1749665455828,-575.74,0.00019835,2]
[365428719,1749665455838,-537.75,0.00019835,2]
[365428720,1749665455847,-893.85,0.00019835,2]
[365428721,1749665455856,-490.0,0.00019835,2]
[365428722,1749665455865,-490.0,0.00019835,2]
[365428723,1749665455875,-690.08,0.00019835,2]
[365428724,1749665455885,-490.0,0.00019835,2]
[365428725,1749665455894,-490.0,0.00019835,2]
[365428726,1749665455904,-490.0,0.00019835,2]
[365428727,1749665455915,-490.0,0.00019835,2]
[365428728,1749665455927,-490.0,0.00019835,2]
[365428729,1749665455936,-490.0,0.00019835,2]
[365428730,1749665455945,-490.0,0.00019835,2]
[365428731,1749665455955,-807.83,0.00019835,2]
[365428732,1749665455965,-503.28,0.00019835,2]
[365428733,1749665455974,-634.5,0.00019835,2]
[365428734,1749665455983,-490.0,0.00019835,2]
[365428735,1749665455994,-490.0,0.00019835,2]
[365428736,1749665456003,-490.0,0.00019835,2]
[365428737,1749665456012,-502.4,0.00019835,2]
[365428738,1749665456022,-490.0,0.00019835,2]
[365428739,1749665456031,-680.15,0.00019835,2]
[365428740,1749665456040,-490.0,0.00019835,2]
[365428741,1749665456050,-490.0,0.00019835,2]
[365428742,1749665456059,-490.0,0.00019835,2]
[365428743,1749665456068,-490.0,0.00019835,2]
[365428744,1749665456077,-490.0,0.00019835,2]
[365428745,1749665456089,-490.0,0.00019835,2]
[365428746,1749665456098,-490.0,0.00019835,2]
[365428747,1749665456108,-490.0,0.00019835,2]
[365428748,1749665456118,-639.3,0.00019835,2]
[365428749,1749665456128,-490.0,0.00019835,2]
[365428750,1749665456137,-490.0,0.00019835,2]
[365428751,1749665456146,-490.0,0.00019835,2]
[365428752,1749665456156,-1022.7,0.00019835,2]
[365428753,1749665456165,-490.0,0.00019835,2]
[365428754,1749665456174,-490.0,0.00019835,2]
[365428755,1749665456184,-490.0,0.00019835,2]
[365428756,1749665456193,-490.0,0.00019835,2]
[365428757,1749665456203,-490.0,0.00019835,2]
[365428758,1749665456216,-490.0,0.00019835,2]
[365428759,1749665456226,-510.72,0.00019835,2]
[365428760,1749665456235,-490.0,0.00019835,2]
[365428761,1749665456245,-490.0,0.00019835,2]
[365428762,1749665456254,-544.62,0.00019835,2]
[365428763,1749665456265,-490.0,0.00019835,2]
[365428764,1749665456275,-490.0,0.00019835,2]
[365428765,1749665456284,-567.29,0.00019835,2]
[365428766,1749665456294,-490.0,0.00019835,2]
[365428767,1749665456303,-490.0,0.00019835,2]
[365428768,1749665456313,-490.0,0.00019835,2]
[365428769,1749665456322,-552.48824629,0.00019835,2]
[365428770,1749665456332,-490.0,0.00019835,2]
[365428771,1749665456341,-520.55434492,0.00019835,2]
[365428772,1749665456351,-490.0,0.00019835,2]
[365428773,1749665456361,-662.14,0.00019835,2]
[365428774,1749665456372,-490.0,0.00019835,2]
[365428775,1749665456383,-363.54835898,0.00019835,2]
[365428776,1749665456394,-490.0,0.00019835,2]
[365428777,1749665456404,-155.52,0.00019835,2]
[365428778,1749665456415,-490.0,0.00019835,2]
[365428779,1749665456426,-490.0,0.00019835,2]
[365428780,1749665456436,-490.0,0.00019835,2]
[365428781,1749665456446,-490.0,0.00019835,2]
[365428782,1749665456460,-682.68,0.00019835,2]
[365428783,1749665456474,-490.0,0.00019835,2]
[365428784,1749665456485,-490.0,0.00019835,2]
[365428785,1749665456497,-490.0,0.00019835,2]
[365428786,1749665456508,-568.56,0.00019835,2]
[365428787,1749665456519,-490.0,0.00019835,2]
[365428788,1749665456530,-490.0,0.00019835,2]
[365428789,1749665456539,-2658.14,0.00019835,2]
[365428790,1749665456550,-490.0,0.00019835,2]
[365428791,1749665456561,-686.99,0.00019835,2]
[365428792,1749665456571,-516.07,0.00019835,2]
[365428793,1749665456581,-490.0,0.00019835,2]
[365428794,1749665456593,-2275.81,0.00019835,2]
[365428795,1749665456603,-516.6,0.00019835,2]
[365428796,1749665456614,-2744.06,0.00019835,2]
[365428797,1749665456624,-490.0,0.00019835,2]
[365428798,1749665456634,-519.94,0.00019835,2]
[365428799,1749665456644,-490.0,0.00019835,2]
[365428800,1749665456654,-325.91,0.00019835,2]
[365428801,1749665456664,-6275.09,0.00019835,2]
[365428802,1749665456674,-490.0,0.00019835,2]
[365428803,1749665456684,-630.77,0.00019835,2]
[365428804,1749665456694,-3922.25,0.00019835,2]
[365428805,1749665456703,-1502.99,0.00019835,2]
[365428806,1749665456717,-490.0,0.00019835,2]
[365428807,1749665456727,-765.7,0.00019835,2]
[365428808,1749665456737,-892.95,0.00019835,2]
[365428809,1749665456747,-490.0,0.00019835,2]
[365428810,1749665456757,-490.0,0.00019835,2]
[365428811,1749665456766,-518.42,0.00019835,2]
[365428812,1749665456776,-490.0,0.00019835,2]
[365428813,1749665456786,-490.0,0.00019835,2]
[365428814,1749665456795,-490.0,0.00019835,2]
[365428815,1749665456805,-490.0,0.00019835,2]
[365428816,1749665456815,-623.19,0.00019835,2]
[365428817,1749665456825,-490.0,0.00019835,2]
[365428818,1749665456835,-2282.12,0.00019835,2]
[365428819,1749665456844,-490.0,0.00019835,2]
[365428820,1749665456854,-3128.31,0.00019835,2]
[365428821,1749665456863,-490.12,0.00019835,2]
[365428822,1749665456873,-490.0,0.00019835,2]
[365428823,1749665456883,-490.0,0.00019835,2]
[365428824,1749665456892,-1105.95,0.00019835,2]
[365428825,1749665456902,-611.86,0.00019835,2]
[365428826,1749665456914,-848.91,0.00019835,2]
[365428827,1749665456926,-490.0,0.00019835,2]
[365428828,1749665456936,-490.0,0.00019835,2]
[365428829,1749665456945,-652.66,0.00019835,2]
[365428830,1749665456955,-497.31,0.00019835,2]
[365428831,1749665456967,-820.4,0.00019835,2]
[365428832,1749665456977,-539.33,0.00019835,2]
[365428833,1749665456986,-490.0,0.00019835,2]
[365428834,1749665456997,-8326.98,0.00019835,2]
[365428835,1749665457007,-777.87,0.00019835,2]
[365428836,1749665457016,-490.0,0.00019835,2]
[365428837,1749665457026,-490.0,0.00019835,2]
[365428838,1749665457035,-490.0,0.00019835,2]
[365428839,1749665457044,-490.0,0.00019835,2]
[365428840,1749665457053,-1358.39,0.00019835,2]
[365428841,1749665457116,-490.0,0.00019835,2]
[365428842,1749665457126,-836.2,0.00019835,2]
[365428843,1749665457137,-490.0,0.00019835,2]
[365428844,1749665457146,-490.0,0.00019835,2]
[365428845,1749665457155,-490.0,0.00019835,2]
[365428846,1749665457165,-684.96,0.00019835,2]
[365428847,1749665457174,-151.0,0.00019835,2]
[365428848,1749665457183,-1022.84,0.00019835,2]
[365428849,1749665457192,-502.82,0.00019835,2]
[365428850,1749665457201,-492.03,0.00019835,2]
[365428851,1749665457213,-490.0,0.00019835,2]
[365428852,1749665457222,-490.0,0.00019835,2]
[365428853,1749665457231,-490.0,0.00019835,2]
[365428854,1749665457240,-498.99,0.00019835,2]
[365428855,1749665457249,-490.0,0.00019835,2]
[365428856,1749665457259,-4318.85,0.00019835,2]
[365428857,1749665457269,-490.0,0.00019835,2]
[365428858,1749665457279,-490.0,0.00019835,2]
[365428859,1749665457290,-490.0,0.00019835,2]
[365428860,1749665457299,-7371.26,0.00019835,2]
[365428861,1749665457309,-490.0,0.00019835,2]
[365428862,1749665457318,-490.0,0.00019835,2]
[365428863,1749665457327,-1249.84,0.00019835,2]
[365428864,1749665457337,-151.0,0.00019835,2]
[365428865,1749665457346,-688.21,0.00019835,2]
[365428866,1749665457355,-490.0,0.00019835,2]
[365428867,1749665457364,-490.0,0.00019835,2]
[365428868,1749665457374,-490.0,0.00019835,2]
[365428869,1749665457383,-490.0,0.00019835,2]
[365428870,1749665457392,-151.0,0.00019835,2]
[365428871,1749665457401,-490.0,0.00019835,2]
[365428872,1749665457411,-663.12,0.00019835,2]
[365428873,1749665457421,-1227.49,0.00019835,2]
[365428874,1749665457431,-490.0,0.00019835,2]
[365428875,1749665457440,-545.96,0.00019835,2]
[365428876,1749665457450,-805.48,0.00019835,2]
[365428877,1749665457463,-490.53,0.00019835,2]
[365428878,1749665457473,-1170.51,0.00019835,2]
[365428879,1749665457482,-490.0,0.00019835,2]
[365428880,1749665457491,-675.67,0.00019835,2]
[365428881,1749665457501,-490.0,0.00019835,2]
[365428882,1749665457511,-490.0,0.00019835,2]
[365428883,1749665457521,-490.0,0.00019835,2]
[365428884,1749665457530,-608.7,0.00019835,2]
[365428885,1749665457539,-2119.05,0.00019835,2]
[365428886,1749665457549,-490.0,0.00019835,2]
[365428887,1749665457559,-490.0,0.00019835,2]
[365428888,1749665457569,-445.26,0.00019835,2]
[365428889,1749665457578,-151.0,0.00019835,2]
[365428890,1749665457588,-780.55,0.00019835,2]
[365428891,1749665457597,-490.0,0.00019835,2]
[365428892,1749665457607,-490.0,0.00019835,2]
[365428893,1749665457616,-490.0,0.00019835,2]
[365428894,1749665457626,-2567.58,0.00019835,2]
[365428895,1749665457635,-490.0,0.00019835,2]
[365428896,1749665457645,-687.53,0.00019835,2]
[365428897,1749665457655,-1321.13,0.00019835,2]
[365428898,1749665457664,-926.34,0.00019835,2]
[365428899,1749665457673,-490.0,0.00019835,2]
[365428900,1749665457683,-490.0,0.00019835,2]
[365428901,1749665457692,-853.54,0.00019835,2]
[365428902,1749665457701,-991.14,0.00019835,2]
[365428903,1749665457714,-757.01,0.00019835,2]
[365428904,1749665457723,-1688.85,0.00019835,2]
[365428905,1749665457732,-563.01,0.00019835,2]
[365428906,1749665457741,-490.0,0.00019835,2]
[365428907,1749665457751,-1345.04,0.00019835,2]
[365428908,1749665457760,-490.0,0.00019835,2]
[365428909,1749665457769,-599.34,0.00019835,2]
[365428910,1749665457779,-490.0,0.00019835,2]
[365428911,1749665457788,-490.0,0.00019835,2]
[365428912,1749665457797,-803.83,0.00019835,2]
[365428913,1749665457807,-491.52,0.00019835,2]
[365428914,1749665457816,-493.17,0.00019835,2]
[365428915,1749665457825,-490.0,0.00019835,2]
[365428916,1749665457834,-505.44,0.00019835,2]
[365428917,1749665457843,-706.74,0.00019835,2]
[365428918,1749665457852,-490.0,0.00019835,2]
[365428919,1749665457861,-3596.48,0.00019835,2]
[365428920,1749665457871,-706.66,0.00019835,2]
[365428921,1749665457880,-490.0,0.00019835,2]
[365428922,1749665457889,-490.0,0.00019835,2]
[365428923,1749665457898,-490.0,0.00019835,2]
[365428924,1749665457906,-664.35,0.00019835,2]
[365428925,1749665457916,-490.0,0.00019835,2]
[365428926,1749665457926,-490.0,0.00019835,2]
[365428927,1749665457935,-490.0,0.00019835,2]
[365428928,1749665457944,-1875.96,0.00019835,2]
[365428929,1749665457953,-495.47,0.00019835,2]
[365428930,1749665457965,-682.89,0.00019835,2]
[365428931,1749665457974,-791.36,0.00019835,2]
[365428932,1749665457983,-490.0,0.00019835,2]
[365428933,1749665457992,-499.58,0.00019835,2]
[365428934,1749665458002,-1000.0,0.00019835,2]
[365428935,1749665458011,-1033.25,0.00019835,2]
[365428936,1749665458020,-490.0,0.00019835,2]
[365428937,1749665458029,-490.0,0.00019835,2]
[365428938,1749665458038,-1493.64,0.00019835,2]
[365428939,1749665458047,-490.0,0.00019835,2]
[365428940,1749665458056,-888.07,0.00019835,2]
[365428941,1749665458065,-562.42,0.00019835,2]
[365428942,1749665458074,-490.0,0.00019835,2]
[365428943,1749665458083,-681.17,0.00019835,2]
[365428944,1749665458094,-490.0,0.00019835,2]
[365428945,1749665458103,-1791.2,0.00019835,2]
[365428946,1749665458114,-490.0,0.00019835,2]
[365428947,1749665458123,-490.0,0.00019835,2]
[365428948,1749665458134,-268.88753747,0.00019836,2]
[365428949,1749665458143,-500.0,0.00019839,2]
[365428950,1749665458153,-201.73443079,0.00019871,2]
[365428951,1749665458162,-151.0,0.0001988,2]
[365428952,1749665458171,-151.0,0.0001988,2]
[365428953,1749665458179,-151.0,0.0001988,2]
[365428954,1749665458188,-326.673354,0.0001988,2]
[365428955,1749665458197,-326.673354,0.0001988,2]
[365428956,1749665458208,-175.527648,0.0001988,2]
[365428957,1749665458217,-175.527648,0.0001988,2]
[365428958,1749665458227,-151.0,0.0001988,2]
[365428959,1749665458235,-151.0,0.0001988,2]
[365428960,1749665458244,-505.817169,0.00019888,2]
[365428961,1749665458254,-505.817169,0.00019888,2]
[365428962,1749665458263,-211.0,0.0001989,2]
[365428963,1749665458274,-168.42041015,0.000199,2]
[365428964,1749665458283,-710.01558031,0.000199,2]
[365428965,1749665458292,-78318.71202227,0.000199,2]
[365428966,1749665458301,-154.04933508,0.000199,2]
[365428967,1749665458311,-156.67294302,0.000199,2]
[365428968,1749665458322,-1000.0,0.000199,2]
[365428969,1749665458332,-201.73443079,0.00019908,2]
[365428970,1749665458342,-268.88753747,0.00019918,2]
[365428971,1749665458351,-201.73443079,0.00019939,2]
[365428972,1749665458360,-500.0,0.0001997,2]
[365428973,1749665458369,-150.0,0.0001997,2]
[365428974,1749665458378,-500.0,0.0001997,2]
[365428975,1749665458387,-150.0,0.0001997,2]
[365428976,1749665458397,-500.0,0.0001997,2]
[365428977,1749665458406,-500.0,0.0001997,2]
[365428978,1749665458416,-500.0,0.0001997,2]
[365428979,1749665458425,-500.0,0.0001997,2]
[365428980,1749665458434,-150.0,0.0001997,2]
[365428981,1749665458443,-150.0,0.0001997,2]
[365428982,1749665458452,-150.0,0.0001997,2]
[365428983,1749665458463,-500.0,0.0001997,2]
[365428984,1749665458472,-538.0,0.0001997,2]
[365428985,1749665458481,-150.0,0.0001997,2]
[365428986,1749665458490,-150.0,0.0001997,2]
[365428987,1749665458500,-150.0,0.0001997,2]
[365428988,1749665458509,-150.0,0.0001997,2]
[365428989,1749665458518,-150.0,0.0001997,2]
[365428990,1749665458528,-150.0,0.0001997,2]
[365428991,1749665458537,-150.0,0.0001997,2]
[365428992,1749665458546,-150.0,0.0001997,2]
[365428993,1749665458556,-150.0,0.0001997,2]
[365428994,1749665458566,-150.0,0.0001997,2]
[365428995,1749665458575,-500.0,0.0001997,2]
[365428996,1749665458584,-268.88753747,0.00019973,2]
[365428997,1749665458594,-500.0,0.00019973,2]
[365428998,1749665458603,-500.0,0.00019973,2]
[365428999,1749665458613,-500.0,0.00019973,2]
[365429000,1749665458622,-500.0,0.00019973,2]
[365429001,1749665458631,-159.94250744,0.00019973,2]
[365429002,1749665458641,-500.0,0.00019973,2]
[365429003,1749665458651,-161.94491362,0.00019973,2]
[365429004,1749665458660,-500.0,0.00019973,2]
[365429005,1749665458669,-386.69184376,0.00019973,2]
[365429006,1749665458679,-500.0,0.00019973,2]
[365429007,1749665458688,-805.58,0.00019995,2]
[365429008,1749665458697,-1108.44,0.00019995,2]
[365429009,1749665458709,-151.0,0.00019996,2]
[365429010,1749665458719,-151.0,0.00019996,2]
[365429011,1749665458728,-151.0,0.00019996,2]
[365429012,1749665458739,-151.0,0.00019996,2]
[365429013,1749665458748,-151.0,0.00019996,2]
[365429014,1749665458758,-62240.8756841,0.00019996,2]
[365429015,1749665458767,-180.0390216,0.00019996,2]
[365429016,1749665458777,-217.8912748,0.00019996,2]
[365429017,1749665458787,-4768.0763882,0.00019996,2]
[365429018,1749665458796,-1582.3049986,0.00019996,2]
[365429019,1749665458805,-326.673354,0.00019997,2]
[365429020,1749665458815,-326.673354,0.00019997,2]
[365429021,1749665458824,-175.527648,0.00019997,2]
[365429022,1749665458834,-175.527648,0.00019997,2]
[365429023,1749665458843,-500.0,0.00019997,2]
[365429024,1749665458853,-150.0,0.00019997,2]
[365429025,1749665458862,-500.0,0.00019997,2]
[365429026,1749665458871,-150.0,0.00019997,2]
[365429027,1749665458880,-500.0,0.00019997,2]
[365429028,1749665458890,-500.0,0.00019997,2]
[365429029,1749665458899,-500.0,0.00019997,2]
[365429030,1749665458909,-500.0,0.00019997,2]
[365429031,1749665458921,-150.0,0.00019997,2]
[365429032,1749665458932,-150.0,0.00019997,2]
[365429033,1749665458941,-200.0,0.00019997,2]
[365429034,1749665458950,-500.0,0.00019997,2]
[365429035,1749665458962,-538.0,0.00019997,2]
[365429036,1749665458972,-250.45464282,0.00019997,2]
[365429037,1749665458980,-200.0,0.00019997,2]
[365429038,1749665458989,-150.0,0.00019997,2]
[365429039,1749665459000,-200.0,0.00019997,2]
[365429040,1749665459011,-200.0,0.00019997,2]
[365429041,1749665459020,-200.45762208,0.00019997,2]
[365429042,1749665459030,-200.0,0.00019997,2]
[365429043,1749665459039,-150.0,0.00019997,2]
[365429044,1749665459048,-500.0,0.00019997,2]
[365429045,1749665459058,-505.817169,0.00019998,2]
[365429046,1749665459067,-505.817169,0.00019998,2]
[365429047,1749665459076,-150.0,0.00019998,2]
[365429048,1749665459086,-500.0,0.00019998,2]
[365429049,1749665459095,-9414.22,0.00019998,2]
[365429050,1749665459104,-666.0,0.00019999,2]
[365429051,1749665459113,-666.0,0.00019999,2]
[365429052,1749665459122,-300.0,0.00019999,2]
[365429053,1749665459131,-300.0,0.00019999,2]
[365429054,1749665459141,-300.0,0.00019999,2]
[365429055,1749665459150,-669.08307195,0.00019999,2]
[365429056,1749665459160,-300.0,0.00019999,2]
[365429057,1749665459169,-1000.0,0.00019999,2]
[365429058,1749665459178,-151.0,0.00019999,2]
[365429059,1749665459188,-151.0,0.00019999,2]
[365429060,1749665459197,-1000.0,0.00019999,2]
[365429061,1749665459206,-1000.0,0.00019999,2]
[365429062,1749665459216,-1000.0,0.00019999,2]
[365429063,1749665459225,-7239.41784005,0.00019999,2]
[365429064,1749665459235,-151.0,0.00019999,2]
[365429065,1749665459244,-559.834288,0.00019999,2]
[365429066,1749665459254,-559.834288,0.00019999,2]
[365429067,1749665459263,-805.58,0.00019999,2]
[365429068,1749665459272,-805.58,0.00019999,2]
[365429069,1749665459281,-805.58,0.00019999,2]
[365429070,1749665459290,-805.58,0.00019999,2]
[365429071,1749665459299,-805.58,0.00019999,2]
[365429072,1749665459308,-805.58,0.00019999,2]
[365429073,1749665459317,-805.58,0.00019999,2]
[365429074,1749665459326,-805.58,0.00019999,2]
[365429075,1749665459335,-805.58,0.00019999,2]
[365429076,1749665459344,-805.58,0.00019999,2]
[365429077,1749665459354,-805.58,0.00019999,2]
[365429078,1749665459363,-805.58,0.00019999,2]
[365429079,1749665459371,-805.58,0.00019999,2]
[365429080,1749665459381,-805.58,0.00019999,2]
[365429081,1749665459390,-805.58,0.00019999,2]
[365429082,1749665459399,-805.58,0.00019999,2]
[365429083,1749665459409,-805.58,0.00019999,2]
[365429084,1749665459418,-805.60628574,0.00019999,2]
[365429085,1749665459429,-1108.44,0.00019999,2]
[365429086,1749665459439,-1108.44,0.00019999,2]
[365429087,1749665459448,-1108.44,0.00019999,2]
[365429088,1749665459457,-1108.44,0.00019999,2]
[365429089,1749665459467,-1108.44,0.00019999,2]
[365429090,1749665459476,-1108.44,0.00019999,2]
[365429091,1749665459485,-1108.44,0.00019999,2]
[365429092,1749665459494,-1108.44,0.00019999,2]
[365429093,1749665459504,-1108.44,0.00019999,2]
[365429094,1749665459513,-1108.44,0.00019999,2]
[365429095,1749665459522,-1108.44,0.00019999,2]
[365429096,1749665459531,-1108.44,0.00019999,2]
[365429097,1749665459541,-1108.44,0.00019999,2]
[365429098,1749665459550,-1108.44,0.00019999,2]
[365429099,1749665459560,-1108.44,0.00019999,2]
[365429100,1749665459570,-1108.44,0.00019999,2]
[365429101,1749665459579,-1108.44,0.00019999,2]
[365429102,1749665459588,-1108.61051599,0.00019999,2]
[365429103,1749665459598,-515.827311,0.00019999,2]
[365429104,1749665459607,-515.827311,0.00019999,2]
[365429105,1749665459617,-344930.55929678,0.0002,3]
[365429106,1749665459626,-10724.76006808,0.0002,3]
[365429107,1749665459636,-1859121.27638937,0.0002,2]
[365429108,1749665459961,-500.0,0.0002,2]
[365429109,1749665459978,-1953.86065915,0.0002,2]
[365429110,1749665460009,-661.67,0.00019178,2]
[365429111,1749665460020,-626.5,0.00019671,2]
[365429112,1749665460030,-1525.83,0.0002,2]
[365429113,1749665460325,-490.0,0.00019178,2]
[365429114,1749665460334,-490.0,0.00019178,2]
[365429115,1749665460344,-138.0,0.00019342,2]
[365429116,1749665460356,-336.0581857,0.00019342,2]
[365429117,1749665460368,-187.6118143,0.00019342,2]
[365429118,1749665460378,-661.67,0.00019506,2]
[365429119,1749665460388,-661.67,0.00019671,2]
[365429120,1749665460399,-626.5,0.00019835,2]
[365429121,1749665460408,-661.67,0.00019835,2]
[365429122,1749665460418,-689063.47594006,0.0002,2]
[365429123,1749665460434,-857.50000015,0.0002,2]
[365429124,1749665460454,-490.0,0.00019342,2]
[365429125,1749665460466,-416.68082387,0.0002,2]
[365429126,1749665460481,-106325.558965,0.0002,2]
[365429127,1749665460493,-405372.48540436,0.0002,2]
[365429128,1749665460530,-28800.0,0.0002,2]
[365429129,1749665460705,251.0,0.00016899,2]
[365429130,1749665460887,-283.91566771,0.00019178,2]
[365429131,1749665460897,-490.0,0.00019506,2]
[365429132,1749665460907,-490.0,0.00019671,2]
[365429133,1749665460916,-490.0,0.00019835,2]
[365429134,1749665460930,-434046.08433229,0.0002,2]
[365429135,1749665461011,-364.5887047,0.00019178,2]
[365429136,1749665461261,-125.4112953,0.00019178,2]
[365429137,1749665461273,-490.0,0.00019178,2]
[365429138,1749665461283,-1190.12677007,0.0002,2]
[365429139,1749665461422,-295.46,0.00019342,2]
[365429140,1749665461432,-10606.54,0.0002,2]
[365429141,1749665461935,-46883.07431597,0.0002,2]
[365429142,1749665461947,-725.82238087,0.0002,2]
[365429143,1749665471327,207.0,0.00016899,2]
[365429144,1749665621357,5007.40729,0.00019393,30]
[365429145,1749665702213,402.81,0.00013699,2]
[365429149,1749665969289,1345.77,0.00016208,2]
[365429152,1749666124614,151.0,0.00016984,2]
[365429153,1749666141536,151.0,0.0001697,2]
[365429154,1749666158269,151.0,0.00016945,2]
[365429155,1749666310493,836.30571687,0.000154,2]
[365429156,1749666319843,670.70624452,9e-05,2]
[365429157,1749666336885,16125.2315575,9e-05,2]
[365429163,1749666429151,-205.0,0.0001749,2]
[365429164,1749666429171,-177.45995214,0.00017796,2]
[365429165,1749666429192,-921.57589962,0.00017796,2]
[365429166,1749666448321,-278.42410038,0.00017796,2]
[365429167,1749666448344,-300.0,0.00017796,2]
[365429168,1749666448367,-177.45995214,0.00017797,2]
[365429169,1749666448389,-302.22,0.00017797,2]
[365429170,1749666448410,-303.74,0.00017797,2]
[365429171,1749666448433,-302.53,0.00017797,2]
[365429172,1749666448453,-304.2,0.00017797,2]
[365429173,1749666448474,-300.23,0.00017797,2]
[365429174,1749666448496,-301.78,0.00017797,2]
[365429175,1749666448516,-302.17,0.00017797,2]
[365429176,1749666448539,-302.92,0.00017797,2]
[365429177,1749666448563,-305.49,0.00017797,2]
[365429178,1749666448585,-304.78,0.00017797,2]
[365429179,1749666448606,-300.52,0.00017797,2]
[365429180,1749666448627,-301.66,0.00017797,2]
[365429181,1749666448646,-302.37,0.00017797,2]
[365429182,1749666448667,-302.21,0.00017797,2]
[365429183,1749666448688,-300.0,0.00017797,2]
[365429184,1749666448709,-301.53,0.00017797,2]
[365429185,1749666448730,-1000.0,0.00017901,2]